bitfinex/quotes_ETHUSD_20240925
["timestamp","ask_amount","ask_price","bid_price","bid_amount"]
[1727278815734,0.12247982,2620.5,2620.1,4.58003]
[1727278816276,0.12247982,2620.5,2620.2,3.81643]
[1727278816831,3.81628,2620.4,2620.1,0.7634]
[1727278817064,0.12247982,2620.5,2620.2,4.21270883]
[1727278817363,0.12247982,2620.4,2620.3,3.81624]
[1727278817528,4.58805,2621.1,2620.6,3.81585]
[1727278817730,0.12236412,2621.0,2620.7,3.19908827]
[1727278817927,3.81515,2621.2,2620.7,3.19908827]
[1727278818170,0.12236412,2621.1,2620.7,10.90682562]
[1727278818333,0.12236412,2621.1,2620.7,3.19908827]
[1727278818534,3.81534,2621.0,2620.6,4.65780977]
[1727278818845,0.12236412,2621.1,2620.6,5.44349957]
[1727278819031,0.12369565,2620.9,2620.6,5.44349957]
[1727278819238,0.8,2621.3,2620.6,5.44349957]
[1727278819239,4.61491,2621.3,2620.9,3.81545]
[1727278819531,5.39529223,2621.7,2620.9,3.81545]
[1727278819532,7.62912,2621.6,2621.1,7.83404827]
[1727278819971,3.81456,2621.6,2621.1,7.83404827]
[1727278820387,3.81421,2621.8,2621.3,3.19908827]
[1727278820533,3.81421,2621.8,2621.3,7.01396827]
[1727278820729,3.93841415,2621.7,2621.3,3.19908827]
[1727278821031,3.81453,2621.6,2621.2,3.81502]
[1727278821243,3.81453,2621.6,2621.2,4.59841083]
[1727278821458,0.12411985,2621.5,2621.2,4.59841083]
[1727278822573,0.12411985,2621.5,2621.2,0.78339083]
[1727278824189,0.12411985,2621.5,2621.2,4.59836083]
[1727278824373,0.12411985,2621.5,2621.3,1.24323691]
[1727278824686,3.81434,2621.7,2621.3,8.25718518]
[1727278824887,0.12436402,2621.4,2621.3,8.25718518]
[1727278825233,0.12436402,2621.4,2621.3,1.24323691]
[1727278825347,3.81426,2621.8,2621.3,1.24323691]
[1727278825551,3.93868402,2621.7,2621.3,1.24323691]
[1727278825980,3.81447,2621.6,2621.3,1.24323691]
[1727278826147,3.81447,2621.6,2621.2,3.81493]
[1727278826347,0.12436402,2621.5,2621.2,3.81493]
[1727278826858,3.81448,2621.6,2621.2,3.81493]
[1727278827482,0.12436402,2621.5,2621.2,3.81493]
[1727278827786,0.12436402,2621.5,2621.1,4.01888827]
[1727278827961,0.12436402,2621.5,2621.2,3.81504]
[1727278828163,0.12436402,2621.5,2621.1,8.6174801]
[1727278830016,0.12436402,2621.5,2621.2,3.81504]
[1727278830177,0.12436402,2621.5,2621.3,7.01385827]
[1727278830373,3.81426,2621.8,2621.3,7.01385827]
[1727278830613,0.12436402,2621.7,2621.6,3.81438]
[1727278830825,0.12436402,2621.7,2621.6,4.67856149]
[1727278831026,4.57247,2622.2,2621.7,3.81425]
[1727278831225,7.62677,2622.4,2621.8,3.19908827]
[1727278831428,0.12467244,2622.1,2621.8,7.01314827]
[1727278831738,3.81333,2622.4,2622.0,3.19908827]
[1727278831890,3.81337,2622.4,2622.0,3.19908827]
[1727278832221,3.81337,2622.4,2622.0,3.9792991]
[1727278833322,3.81337,2622.4,2622.0,7.7931691]
[1727278833891,3.81331,2622.4,2621.7,0.460215]
[1727278834081,3.81376,2622.1,2621.6,0.7694]
[1727278834285,3.8136,2622.2,2621.3,9.02647928]
[1727278834523,3.81432,2621.7,2621.3,5.82739101]
[1727278834823,7.62818,2621.9,2621.4,1.3227391]
[1727278834997,3.81403,2621.9,2621.3,11.59807827]
[1727278835194,0.17131042,2621.8,2621.4,4.97453783]
[1727278835586,3.98560042,2621.8,2621.4,1.15980783]
[1727278835799,3.81433,2621.7,2621.4,1.15980783]
[1727278836106,3.81433,2621.7,2621.3,3.96848827]
[1727278836107,3.8145,2621.6,2621.3,0.7694]
[1727278836318,3.8145,2621.6,2621.1,4.58058]
[1727278836319,3.98565633,2621.6,2621.1,4.58058]
[1727278836518,3.98565633,2621.6,2621.2,0.839582]
[1727278837233,3.81462,2621.5,2621.1,0.7654]
[1727278837438,3.8149,2621.3,2620.8,11.21562]
[1727278837640,3.81476,2621.4,2620.9,1.937352]
[1727278837641,3.98565297,2621.4,2620.9,1.937352]
[1727278837803,3.81476,2621.4,2621.0,1.3152972]
[1727278838134,0.17089297,2621.3,2621.0,1.3152972]
[1727278838637,0.17089297,2621.3,2621.0,5.1305572]
[1727278839013,3.81462,2621.5,2621.0,5.1305572]
[1727278839208,0.17069384,2621.2,2621.0,5.1305572]
[1727278839413,3.81462,2621.5,2621.1,1.40823975]
[1727278839843,0.17069384,2621.4,2621.1,8.42250802]
[1727278840142,7.62909,2621.6,2621.1,8.42250802]
[1727278840350,0.7857,2621.8,2621.1,8.42250802]
[1727278840351,0.17067457,2621.5,2621.3,3.19908827]
[1727278840505,0.17067457,2621.5,2621.2,1.6071508]
[1727278840818,0.17059105,2621.4,2621.2,1.6071508]
[1727278840996,0.17059105,2621.4,2621.3,7.09027971]
[1727278841205,3.81402,2621.9,2621.4,3.81474]
[1727278841407,7.62815,2621.9,2621.5,0.70901197]
[1727278841632,3.81433,2621.7,2621.3,3.81489]
[1727278842122,3.81462,2621.5,2621.2,0.7649]
[1727278842322,3.81462,2621.5,2620.9,7.01444827]
[1727278842323,3.81462,2621.5,2620.9,4.58026]
[1727278842525,3.98547668,2621.4,2621.0,0.458026]
[1727278842711,0.17070668,2621.4,2621.0,4.273346]
[1727278843111,0.17070668,2621.4,2621.0,0.458026]
[1727278843314,3.81491,2621.3,2621.0,0.458026]
[1727278843528,4.6471,2621.2,2620.6,4.63429]
[1727278843728,3.81526,2621.1,2620.6,4.63429]
[1727278843928,0.17078378,2621.0,2620.6,0.8185]
[1727278844247,0.17078378,2621.0,2620.7,0.78335283]
[1727278844749,0.17078378,2621.0,2620.7,4.59912283]
[1727278845998,0.17078378,2621.0,2620.9,3.19908827]
[1727278846237,3.81477,2621.4,2620.9,7.83493827]
[1727278846543,3.81492,2621.3,2621.0,1.17268397]
[1727278846725,3.81492,2621.3,2620.7,0.78335283]
[1727278846726,3.81507,2621.2,2620.8,3.8156]
[1727278847341,3.81507,2621.2,2620.8,3.81556]
[1727278847500,3.8152,2621.1,2620.7,0.7724]
[1727278847709,3.8152,2621.1,2620.6,3.81581]
[1727278847946,3.8152,2621.1,2620.7,0.70148983]
[1727278848400,3.81542,2621.0,2620.7,0.70148983]
[1727278849215,3.81499,2621.3,2620.9,3.19908827]
[1727278849752,0.17033404,2621.2,2620.9,3.19908827]
[1727278849903,3.81499,2621.3,2621.0,0.70146483]
[1727278850107,0.17033404,2621.2,2621.0,0.70146483]
[1727278850405,3.81499,2621.3,2621.0,0.70146483]
[1727278850624,0.17033404,2621.1,2621.0,0.70146483]
[1727278850805,3.81532,2621.1,2620.7,0.70148983]
[1727278851212,3.98578331,2621.0,2620.7,0.70148983]
[1727278851416,0.92725331,2621.0,2620.4,3.81612]
[1727278851625,3.81548,2620.9,2620.4,3.8161]
[1727278852136,0.1703276,2620.8,2620.4,3.8161]
[1727278852449,0.1703276,2620.8,2620.5,0.77996883]
[1727278853655,0.1703276,2620.8,2620.5,4.59598883]
[1727278854019,3.9859776,2620.8,2620.5,0.77996883]
[1727278854249,3.9859776,2620.8,2620.5,7.7950471]
[1727278854250,0.1703276,2620.8,2620.5,7.7950471]
[1727278854558,3.81548,2620.9,2620.6,0.77950471]
[1727278854851,0.17019267,2620.8,2620.6,0.77950471]
[1727278855621,0.17019267,2620.8,2620.7,7.01485827]
[1727278855817,3.81506,2621.2,2620.7,7.78335827]
[1727278856019,0.17007699,2620.8,2620.7,7.78335827]
[1727278856221,3.81506,2621.2,2620.7,7.78335827]
[1727278856523,3.81506,2621.2,2620.8,1.15992483]
[1727278856746,3.81511,2621.2,2620.8,4.97542483]
[1727278857122,3.81496,2621.3,2620.8,4.97542483]
[1727278857362,3.81505,2621.2,2620.8,4.97542483]
[1727278857830,0.17007699,2621.1,2620.8,4.97542483]
[1727278858027,0.17007699,2621.1,2620.9,0.89430131]
[1727278858750,0.17007699,2621.1,2620.7,7.78328827]
[1727278859948,0.17007699,2621.1,2620.8,3.81555]
[1727278860288,3.81492,2621.3,2620.9,3.81548]
[1727278860427,0.17020551,2621.0,2620.7,7.78326827]
[1727278860618,3.81492,2621.3,2620.8,4.21223883]
[1727278860822,0.17020551,2620.9,2620.8,4.21223883]
[1727278861032,3.81506,2621.2,2620.8,4.21223883]
[1727278861218,3.81506,2621.2,2620.8,0.39675883]
[1727278861219,0.17020551,2620.9,2620.8,0.39675883]
[1727278861458,3.81506,2621.2,2620.8,0.39675883]
[1727278861623,0.17021836,2620.9,2620.8,0.39675883]
[1727278862141,3.81506,2621.2,2620.8,0.39675883]
[1727278862319,0.17021836,2621.1,2620.8,0.39675883]
[1727278863022,3.81555,2620.9,2620.4,0.8074]
[1727278863342,3.8157,2620.8,2620.4,4.62354]
[1727278863534,3.81601,2620.6,2620.1,3.81656]
[1727278863730,0.17034045,2620.5,2620.1,3.81656]
[1727278863931,3.81628,2620.4,2620.0,0.7996]
[1727278864158,3.81628,2620.4,2619.8,4.59996]
[1727278864159,3.8165,2620.2,2619.8,4.59996]
[1727278864369,3.8165,2620.2,2619.7,3.19908827]
[1727278864370,3.81666,2620.1,2619.9,0.77990483]
[1727278864536,3.81666,2620.1,2619.7,3.81721]
[1727278864537,0.17031474,2620.1,2619.7,3.81721]
[1727278864869,0.17031474,2620.1,2619.8,3.81706]
[1727278866065,0.17031474,2620.1,2619.7,7.01630827]
[1727278866365,0.16921559,2620.0,2619.7,7.01630827]
[1727278866582,3.81656,2620.2,2619.8,0.77992083]
[1727278866883,0.16921559,2620.1,2619.8,0.77992083]
[1727278867389,4.73802559,2620.1,2619.6,0.7829]
[1727278867548,0.92131559,2620.1,2619.7,3.8172]
[1727278867748,0.92131559,2620.1,2619.7,7.01622827]
[1727278869684,0.92131559,2620.1,2619.7,3.19908827]
[1727278869988,3.81681,2620.0,2619.6,0.7829]
[1727278870159,0.16914485,2619.9,2619.6,1.2466753]
[1727278870752,3.81724,2619.7,2619.4,0.037433]
[1727278871065,4.63904,2619.7,2619.4,0.037433]
[1727278871404,0.16899693,2619.6,2619.4,0.037433]
[1727278871554,3.98637693,2619.6,2619.4,0.037433]
[1727278871883,3.81752,2619.5,2619.4,0.037433]
[1727278872287,3.98639474,2619.5,2619.4,0.037433]
[1727278872902,4.78889474,2619.5,2619.4,0.037433]
[1727278876402,0.97137474,2619.5,2619.4,0.037433]
[1727278876891,4.78889474,2619.5,2619.4,0.037433]
[1727278877189,0.16887474,2619.5,2619.4,0.037433]
[1727278877503,3.81731,2619.7,2619.4,0.037433]
[1727278877700,0.16843091,2619.5,2619.4,0.037433]
[1727278877853,3.81731,2619.7,2619.4,0.037433]
[1727278878055,0.16843091,2619.5,2619.4,0.037433]
[1727278878356,4.63156,2620.0,2619.5,3.81744]
[1727278878557,4.63156,2620.0,2619.5,7.01652827]
[1727278879190,0.16843093,2619.9,2619.5,7.01652827]
[1727278879704,3.81724,2619.7,2619.4,0.037433]
[1727278879854,3.8174,2619.6,2619.4,0.037433]
[1727278880055,0.16846953,2619.6,2619.4,0.037433]
[1727278881482,4.63222,2619.5,2619.4,0.037433]
[1727278881866,4.8005866,2619.5,2619.4,0.037433]
[1727278882993,0.9830666,2619.5,2619.4,0.037433]
[1727278883717,0.1683666,2619.5,2619.4,0.037433]
[1727278884212,0.16814786,2619.5,2619.4,0.037433]
[1727278884583,3.81723,2619.7,2619.4,0.037433]
[1727278884888,0.16814786,2619.6,2619.4,3.855073]
[1727278885216,3.81694,2619.9,2619.4,0.037433]
[1727278885395,0.16814786,2619.8,2619.4,0.037433]
[1727278885600,3.81706,2619.9,2619.4,3.855033]
[1727278885914,0.16814786,2619.8,2619.4,3.855033]
[1727278886110,3.98524786,2619.8,2619.4,3.855033]
[1727278886316,0.16814786,2619.8,2619.4,3.855033]
[1727278886482,0.16814786,2619.8,2619.6,3.81733]
[1727278886692,12.04964,2620.1,2619.6,3.81733]
[1727278886895,0.16814786,2619.7,2619.6,3.81733]
[1727278887099,3.8168,2620.0,2619.6,3.81733]
[1727278887417,3.8168,2620.0,2619.5,3.81751]
[1727278887418,7.63369,2620.0,2619.5,3.81751]
[1727278887719,3.98533226,2619.9,2619.4,3.854993]
[1727278888424,3.98535226,2619.9,2619.4,0.037433]
[1727278888709,3.81729,2619.7,2619.4,0.037433]
[1727278889006,3.8174,2619.6,2619.4,0.037433]
[1727278889219,0.16837946,2619.5,2619.4,0.037433]
[1727278889972,4.63373,2619.7,2619.4,0.037433]
[1727278890168,0.16837946,2619.6,2619.4,0.037433]
[1727278890910,3.98578946,2619.6,2619.4,0.037433]
[1727278892322,0.16837946,2619.6,2619.4,0.037433]
[1727278893988,3.81752,2619.5,2619.4,0.037433]
[1727278894188,3.98579653,2619.5,2619.4,0.037433]
[1727278894589,4.77359653,2619.5,2619.4,0.037433]
[1727278895899,0.16827653,2619.5,2619.4,0.037433]
[1727278896414,0.16827653,2619.5,2619.4,3.855093]
[1727278896614,3.81716,2619.8,2619.4,3.855093]
[1727278896948,3.98539926,2619.7,2619.4,0.037433]
[1727278897432,0.16810926,2619.7,2619.4,0.843433]
[1727278897592,0.16810926,2619.7,2619.4,4.661023]
[1727278897788,3.81716,2619.8,2619.4,4.661023]
[1727278897986,0.16810926,2619.7,2619.4,4.661023]
[1727278898190,0.16810926,2619.7,2619.4,0.843433]
[1727278898191,3.81727,2619.7,2619.4,0.843433]
[1727278898485,0.16810926,2619.6,2619.4,4.661063]
[1727278898917,3.81716,2619.8,2619.4,4.661063]
[1727278899116,0.16819289,2619.5,2619.4,4.661063]
[1727278899324,3.81716,2619.8,2619.4,0.843433]
[1727278899628,3.81716,2619.8,2619.4,4.661093]
[1727278899832,0.16819289,2619.7,2619.4,4.661093]
[1727278900004,8.46253,2620.0,2619.5,3.8174]
[1727278900199,0.16822506,2619.9,2619.5,3.8174]
[1727278900404,0.16822506,2619.9,2619.5,7.63486]
[1727278900730,0.16822506,2619.9,2619.6,3.81727]
[1727278901831,0.16822506,2619.9,2619.8,3.81708]
[1727278902131,7.63322,2620.2,2619.7,3.81721]
[1727278902287,0.16831513,2619.9,2619.7,3.81721]
[1727278902612,3.81665,2620.1,2619.7,3.81721]
[1727278902613,0.16831513,2619.8,2619.7,3.81721]
[1727278902818,4.64954,2620.3,2619.9,3.81693]
[1727278903136,4.64954,2620.3,2619.7,3.81721]
[1727278903137,3.98489513,2620.2,2619.8,0.7979]
[1727278903296,3.98489513,2620.2,2619.8,4.61496]
[1727278903696,3.98489513,2620.2,2619.8,4.61497]
[1727278904307,7.80151513,2620.2,2619.8,0.7979]
[1727278904524,3.98489513,2620.2,2619.8,0.7979]
[1727278904843,3.98489513,2620.2,2619.7,3.81714]
[1727278904844,3.81681,2620.0,2619.6,4.60383]
[1727278905407,0.16839233,2619.9,2619.6,4.60383]
[1727278906242,0.16839233,2619.9,2619.6,0.7865]
[1727278906448,3.98538233,2619.9,2619.4,7.672603]
[1727278906647,3.8171,2619.8,2619.4,3.855033]
[1727278907250,0.16869468,2619.7,2619.4,3.855033]
[1727278907551,0.16869468,2619.7,2619.5,3.8175]
[1727278907707,3.81695,2619.9,2619.5,3.8175]
[1727278908222,0.16869468,2619.8,2619.5,3.8175]
[1727278908623,0.16869468,2619.8,2619.4,0.037433]
[1727278908830,3.81708,2619.8,2619.4,3.855073]
[1727278909140,0.16869468,2619.7,2619.4,0.037433]
[1727278909508,4.61528,2619.8,2619.4,0.037433]
[1727278909736,0.16869468,2619.6,2619.4,0.037433]
[1727278909942,3.81727,2619.7,2619.4,0.037433]
[1727278910108,0.16869468,2619.5,2619.4,0.037433]
[1727278910302,3.81727,2619.7,2619.4,0.037433]
[1727278910563,0.16869468,2619.5,2619.4,0.037433]
[1727278910706,3.81727,2619.7,2619.4,0.037433]
[1727278911105,0.16869468,2619.6,2619.4,0.037433]
[1727278911766,3.98609468,2619.6,2619.4,0.037433]
[1727278914255,0.16869468,2619.6,2619.4,0.037433]
[1727278914764,0.16869468,2619.6,2619.4,3.855093]
[1727278914922,3.81715,2619.8,2619.4,3.855093]
[1727278915124,0.16859818,2619.5,2619.4,3.855093]
[1727278915325,1.18570667,2619.8,2619.4,3.855013]
[1727278915554,0.16859818,2619.5,2619.4,7.88290127]
[1727278915864,0.16858531,2619.5,2619.4,4.683813]
[1727278916653,1.18570667,2619.8,2619.4,4.683813]
[1727278916855,0.16858531,2619.5,2619.4,0.037433]
[1727278917040,7.63455,2619.7,2619.4,0.037433]
[1727278917247,0.16857245,2619.6,2619.4,0.037433]
[1727278918762,0.16857245,2619.6,2619.5,3.81752]
[1727278918922,5.00273667,2619.9,2619.5,3.81752]
[1727278919256,5.00273667,2619.9,2619.4,3.23652127]
[1727278919419,1.35425982,2619.8,2619.4,7.05417127]
[1727278919614,1.35425982,2619.8,2619.4,3.855083]
[1727278920125,1.35425982,2619.8,2619.5,3.81745]
[1727278920524,0.16855315,2619.8,2619.7,3.81723]
[1727278920848,1.18570667,2620.0,2619.7,3.81723]
[1727278921046,0.16857888,2619.8,2619.7,3.81723]
[1727278921354,1.18570667,2620.0,2619.7,3.81723]
[1727278921565,0.16857888,2619.8,2619.7,3.81723]
[1727278921738,1.18570667,2620.0,2619.7,3.81723]
[1727278921739,1.18570667,2620.0,2619.8,3.81706]
[1727278922054,1.18570667,2620.0,2619.7,3.81723]
[1727278922445,5.00251667,2620.0,2619.6,7.83424827]
[1727278922618,1.18570667,2619.9,2619.6,7.83424827]
[1727278923160,5.00251667,2620.0,2619.6,7.83424827]
[1727278923367,5.00251667,2620.0,2619.6,4.63516]
[1727278923768,1.18570667,2620.0,2619.7,3.8172]
[1727278924261,1.58094223,2620.1,2619.7,3.8172]
[1727278924262,1.18570667,2620.1,2619.7,3.8172]
[1727278924475,0.16870111,2619.9,2619.7,3.8172]
[1727278924663,1.18570667,2620.0,2619.7,3.8172]
[1727278924858,0.16870111,2619.8,2619.7,3.8172]
[1727278925020,1.18570667,2620.0,2619.7,3.8172]
[1727278925223,0.16870111,2619.9,2619.7,3.8172]
[1727278926671,1.18570667,2620.1,2619.7,3.8172]
[1727278926834,0.16872681,2619.8,2619.7,3.8172]
[1727278927035,1.18570667,2620.1,2619.7,3.8172]
[1727278927340,1.35443348,2620.0,2619.7,3.8172]
[1727278928370,5.17123348,2620.0,2619.6,4.63516]
[1727278928643,3.81708,2619.8,2619.4,4.665163]
[1727278928959,1.18570667,2619.9,2619.5,3.81751]
[1727278929163,0.16870751,2619.7,2619.5,3.81751]
[1727278929361,1.18570667,2619.8,2619.5,3.81751]
[1727278929673,5.00270667,2619.9,2619.5,3.81751]
[1727278929879,0.16870751,2619.7,2619.5,3.81751]
[1727278930078,1.18570667,2619.8,2619.4,4.04672127]
[1727278930239,0.16870751,2619.6,2619.4,7.86437127]
[1727278930573,5.00270667,2619.9,2619.4,7.86437127]
[1727278930771,0.16870751,2619.5,2619.4,7.86437127]
[1727278930947,5.00270667,2619.9,2619.4,7.86437127]
[1727278931151,0.16870751,2619.5,2619.4,7.86437127]
[1727278931664,5.00270667,2619.9,2619.4,7.86437127]
[1727278931837,1.18570667,2619.8,2619.4,7.86437127]
[1727278932034,0.16870751,2619.7,2619.5,3.81747]
[1727278932352,1.18570667,2619.8,2619.5,3.81747]
[1727278932540,0.16870751,2619.6,2619.5,3.81747]
[1727278932737,1.18570667,2619.8,2619.5,3.81747]
[1727278932958,0.16870751,2619.6,2619.5,3.81747]
[1727278933170,1.18570667,2619.9,2619.6,3.81731]
[1727278933480,1.18570667,2619.9,2619.7,3.81722]
[1727278933697,1.18570667,2620.2,2619.8,3.95238827]
[1727278933836,1.18570667,2620.2,2620.0,7.01587827]
[1727278934039,5.39716223,2620.4,2620.0,7.01587827]
[1727278934040,1.18570667,2620.3,2620.0,7.01587827]
[1727278934285,1.18570667,2620.4,2620.1,3.81651]
[1727278934793,5.39703223,2620.5,2620.3,3.81635]
[1727278934794,1.18570667,2620.5,2620.3,3.81635]
[1727278934946,1.18570667,2620.5,2620.2,4.01058827]
[1727278935151,1.18570667,2620.6,2620.2,4.01058827]
[1727278935477,1.18570667,2620.6,2620.2,7.82702827]
[1727278935681,1.18570667,2620.6,2620.2,4.01058827]
[1727278936070,0.16887472,2620.5,2620.2,4.01058827]
[1727278937397,0.16887472,2620.5,2620.4,3.19908827]
[1727278937605,0.16887472,2620.5,2620.4,7.81509827]
[1727278937916,9.04094223,2621.0,2620.8,3.8156]
[1727278937917,1.18570667,2621.0,2620.8,3.8156]
[1727278938042,1.18570667,2621.1,2620.8,3.8156]
[1727278938244,1.18570667,2621.2,2620.8,3.8156]
[1727278938446,5.76549667,2621.3,2620.8,3.8156]
[1727278938676,5.76549667,2621.3,2620.8,4.6196]
[1727278939481,4.57979,2621.3,2620.8,4.6196]
[1727278939692,1.58094223,2621.5,2621.1,3.19908827]
[1727278939693,1.18570667,2621.5,2621.1,3.19908827]
[1727278939862,3.81454,2621.6,2621.1,7.01426827]
[1727278940269,7.6291,2621.6,2621.1,7.01426827]
[1727278940475,3.81454,2621.6,2621.1,3.81517]
[1727278940785,3.81454,2621.6,2620.9,7.01446827]
[1727278941095,3.81454,2621.6,2621.0,3.81522]
[1727278941450,3.81463,2621.5,2621.0,3.81522]
[1727278941929,7.62913,2621.6,2621.0,3.81522]
[1727278942491,3.81454,2621.6,2621.0,3.81522]
[1727278942823,4.61775,2621.8,2621.3,3.81489]
[1727278943124,3.81446,2621.6,2621.3,0.8297]
[1727278944083,3.81446,2621.6,2621.0,3.81532]
[1727278944084,3.81471,2621.5,2621.0,4.64503]
[1727278944421,0.8035,2621.8,2620.9,3.81547]
[1727278944422,0.8092,2621.3,2620.9,3.81547]
[1727278944622,3.81482,2621.4,2620.9,3.81547]
[1727278944973,3.81482,2621.4,2620.9,7.01455827]
[1727278945173,3.81482,2621.4,2620.9,3.19908827]
[1727278945174,3.81497,2621.3,2620.9,3.19908827]
[1727278945454,4.6239,2621.5,2620.9,7.01444827]
[1727278945715,4.6239,2621.5,2621.0,3.81526]
[1727278946075,3.8147,2621.5,2621.1,3.81518]
[1727278946411,3.81432,2621.7,2621.1,7.01426827]
[1727278946622,3.81448,2621.6,2621.1,7.01426827]
[1727278947213,3.81448,2621.6,2621.2,4.58833]
[1727278947420,3.81448,2621.6,2621.2,4.66462408]
[1727278947579,3.81432,2621.7,2621.2,4.58833]
[1727278948080,3.81447,2621.6,2621.2,4.58833]
[1727278948477,3.81447,2621.6,2621.2,0.7733]
[1727278949786,3.81467,2621.5,2621.2,0.7733]
[1727278949973,3.81447,2621.6,2621.2,0.7733]
[1727278950191,7.62905,2621.6,2621.2,0.7733]
[1727278950489,3.81447,2621.6,2621.2,0.7733]
[1727278951115,3.81462,2621.5,2621.2,0.7733]
[1727278952315,3.81447,2621.6,2621.2,0.7733]
[1727278952616,0.7568,2621.8,2620.9,0.8266]
[1727278952617,3.815,2621.3,2620.9,0.8266]
[1727278953032,4.60096,2621.4,2620.9,0.8266]
[1727278953033,8.41583,2621.4,2620.9,4.64207]
[1727278953239,4.60096,2621.4,2620.9,4.64207]
[1727278953530,3.81491,2621.3,2620.9,4.64207]
[1727278954121,4.60096,2621.4,2620.9,8.45744]
[1727278954324,4.60096,2621.4,2620.9,4.64197]
[1727278954532,8.41582,2621.4,2620.9,4.64197]
[1727278954761,4.60096,2621.4,2620.9,4.64197]
[1727278955228,8.41584,2621.4,2620.9,4.64197]
[1727278955594,4.60096,2621.4,2620.9,4.64197]
[1727278955928,3.81496,2621.3,2620.9,4.64197]
[1727278956230,3.81496,2621.3,2620.9,0.8266]
[1727278956739,3.81511,2621.2,2620.7,11.59761827]
[1727278957126,3.8153,2621.1,2620.7,0.7672]
[1727278957337,3.19908827,2621.6,2620.4,0.7672]
[1727278957547,3.19908827,2621.6,2620.2,7.4]
[1727278957548,3.81538,2621.0,2620.2,8.1672]
[1727278957688,0.7958,2620.8,2620.2,8.1672]
[1727278958012,3.81585,2620.7,2620.2,8.1672]
[1727278958360,3.81599,2620.6,2620.2,8.1672]
[1727278958521,3.81599,2620.6,2620.2,0.7672]
[1727278959202,4.61142,2620.8,2620.2,0.7672]
[1727278959405,3.81592,2620.6,2620.2,0.7672]
[1727278960331,3.81592,2620.6,2619.8,4.57514]
[1727278960332,3.81648,2620.3,2619.8,4.57514]
[1727278961288,0.7579,2620.6,2619.8,0.7581]
[1727278961487,0.7689,2620.2,2619.5,0.8073]
[1727278961658,0.7689,2620.2,2619.5,4.00638827]
[1727278961659,8.4021,2620.2,2619.5,4.00638827]
[1727278962385,3.81666,2620.1,2619.5,0.8073]
[1727278962703,3.81695,2619.9,2619.5,0.8073]
[1727278963198,3.81695,2619.9,2619.5,4.62482]
[1727278963361,3.81679,2620.0,2619.5,7.82390827]
[1727278963952,3.81673,2620.1,2619.6,3.81737]
[1727278964185,3.81673,2620.1,2619.7,3.19908827]
[1727278964398,3.81673,2620.1,2619.5,7.82382827]
[1727278964399,3.81694,2619.9,2619.5,7.82382827]
[1727278965682,3.8168,2620.0,2619.6,3.81737]
[1727278965904,4.63943,2620.4,2619.5,4.00638827]
[1727278965905,3.81695,2619.9,2619.5,4.00638827]
[1727278966070,3.81695,2619.9,2619.5,0.8073]
[1727278966603,3.81695,2619.9,2619.5,4.62481]
[1727278967263,3.81695,2619.9,2619.5,7.82389827]
[1727278967462,3.81683,2620.0,2619.5,11.64132827]
[1727278967674,3.81683,2620.0,2619.5,7.82381827]
[1727278968962,3.81683,2620.0,2619.6,3.81737]
[1727278970383,3.81643,2620.3,2619.6,3.81737]
[1727278970573,3.81667,2620.1,2619.6,3.81729]
[1727278970772,3.81667,2620.1,2619.6,3.89362677]
[1727278970972,3.81667,2620.1,2619.6,3.81729]
[1727278971259,3.81643,2620.3,2619.8,4.6299]
[1727278971479,3.81643,2620.3,2619.9,3.19908827]
[1727278971660,3.81643,2620.3,2619.8,4.6299]
[1727278972100,3.81622,2620.4,2619.8,4.6299]
[1727278972360,7.63232,2620.5,2620.1,0.7888]
[1727278972672,3.81623,2620.4,2620.1,0.7888]
[1727278973005,3.81623,2620.4,2619.8,4.60578]
[1727278973206,3.8165,2620.2,2619.8,4.60578]
[1727278973670,8.42818,2620.4,2619.8,8.42274]
[1727278973867,4.61183,2620.4,2619.8,4.60576]
[1727278974262,3.8165,2620.2,2619.8,4.60576]
[1727278974495,3.81642,2620.3,2619.8,4.60576]
[1727278974665,3.81642,2620.3,2619.8,8.42278]
[1727278975285,3.81651,2620.2,2619.8,4.60576]
[1727278975603,3.81671,2620.1,2619.8,0.7888]
[1727278976904,3.81679,2620.0,2619.6,4.64215]
[1727278977397,3.81679,2620.0,2619.6,0.8249]
[1727278977621,3.81701,2619.9,2619.6,0.8249]
[1727278978073,3.81679,2620.0,2619.6,0.8249]
[1727278978262,3.81702,2619.9,2619.6,0.8249]
[1727278978897,3.81679,2620.0,2619.6,0.8249]
[1727278979516,7.63367,2620.0,2619.6,0.8249]
[1727278979810,3.81695,2619.9,2619.6,0.8249]
[1727278980020,3.81679,2620.0,2619.6,0.8249]
[1727278980203,3.81694,2619.9,2619.6,0.8249]
[1727278980926,3.8171,2619.8,2619.4,0.037433]
[1727278981090,3.81748,2619.6,2619.4,0.037433]
[1727278982024,7.63495,2619.6,2619.4,0.037433]
[1727278982317,3.81747,2619.6,2619.4,0.037433]
[1727278982481,3.81752,2619.5,2619.4,0.037433]
[1727278983502,3.8174,2619.6,2619.4,0.037433]
[1727278984180,3.81725,2619.7,2619.4,0.037433]
[1727278984385,3.81746,2619.6,2619.4,0.037433]
[1727278984905,3.81741,2619.6,2619.4,0.037433]
[1727278985227,0.16861105,2619.5,2619.4,0.037433]
[1727278986081,7.98821932,2619.5,2619.4,0.037433]
[1727278986289,10.98821932,2619.5,2619.4,0.037433]
[1727278986482,11.7785472,2619.5,2619.4,0.037433]
[1727278986683,12.56887508,2619.5,2619.4,0.037433]
[1727278986984,13.51433539,2619.5,2619.4,0.037433]
[1727278987191,13.51159306,2619.5,2619.4,0.037433]
[1727278987489,13.11586209,2619.5,2619.4,0.037433]
[1727278987713,12.56586209,2619.5,2619.4,0.037433]
[1727278987909,12.17150158,2619.5,2619.4,0.037433]
[1727278988114,8.97241331,2619.5,2619.4,0.037433]
[1727278988419,8.57763379,2619.5,2619.4,0.037433]
[1727278989384,7.78913105,2619.5,2619.4,0.037433]
[1727278990620,8.57763379,2619.5,2619.4,0.037433]
[1727278990964,8.97241331,2619.5,2619.4,0.037433]
[1727278991138,8.57684098,2619.5,2619.4,0.037433]
[1727278991966,7.78913105,2619.5,2619.4,0.037433]
[1727278995124,8.33913105,2619.5,2619.4,0.037433]